fUSD/lending_fUSD_20240803
["ID","MTS","AMOUNT","RATE_DAILY","PERIOD"]
[333988745,1722666724178,-2130.919265,0.00017534,2]
[333988746,1722666724188,-552.5,0.00017534,2]
[333988747,1722666724198,-1054.46,0.00017534,2]
[333988748,1722666724212,-500.0,0.00017534,2]
[333988749,1722666724226,-2805.89,0.00017534,2]
[333988750,1722666724238,-1433.51,0.00017534,2]
[333988751,1722666724248,-675.88,0.00017534,2]
[333988752,1722666724258,-541.24629196,0.00017534,2]
[333988753,1722666724269,-1088.81,0.00017534,2]
[333988754,1722666724280,-500.0,0.00017534,2]
[333988755,1722666724291,-4007.83,0.00017534,2]
[333988756,1722666724302,-509.03262177,0.00017534,2]
[333988757,1722666724313,-762.84,0.00017534,2]
[333988758,1722666724324,-3217.66,0.00017534,2]
[333988759,1722666724334,-500.0,0.00017534,2]
[333988760,1722666724345,-500.0,0.00017534,2]
[333988761,1722666724355,-2200.75,0.00017534,2]
[333988762,1722666724366,-951.76,0.00017534,2]
[333988763,1722666724377,-151.0,0.00017534,2]
[333988764,1722666724389,-1702.58,0.00017534,2]
[333988765,1722666724400,-500.0,0.00017534,2]
[333988766,1722666724410,-2092.77,0.00017534,2]
[333988767,1722666724421,-652.04,0.00017534,2]
[333988768,1722666724431,-500.0,0.00017534,2]
[333988769,1722666724442,-500.0,0.00017534,2]
[333988770,1722666724453,-5244.42,0.00017534,2]
[333988771,1722666724475,-500.0,0.00017534,2]
[333988772,1722666724486,-710.45,0.00017534,2]
[333988773,1722666724497,-693.09,0.00017534,2]
[333988774,1722666724508,-761.36,0.00017534,2]
[333988775,1722666724518,-1018.959212,0.00017534,2]
[333988776,1722666724529,-2061.72,0.00017534,2]
[333988777,1722666724539,-500.0,0.00017534,2]
[333988778,1722666724550,-500.0,0.00017534,2]
[333988779,1722666724560,-2038.36,0.00017534,2]
[333988780,1722666724570,-4346.28,0.00017534,2]
[333988781,1722666724581,-1475.27,0.00017534,2]
[333988782,1722666724591,-506.87365741,0.00017534,2]
[333988783,1722666724602,-1018.959207,0.00017534,2]
[333988784,1722666724612,-744.05,0.00017534,2]
[333988785,1722666724622,-1223.68,0.00017534,2]
[333988786,1722666724633,-500.0,0.00017534,2]
[333988787,1722666724644,-1359.7,0.00017534,2]
[333988788,1722666724660,-500.0,0.00017534,2]
[333988789,1722666724671,-500.0,0.00017534,2]
[333988790,1722666724683,-4500.27,0.00017534,2]
[333988791,1722666724697,-500.0,0.00017534,2]
[333988792,1722666724713,-1729.93,0.00017534,2]
[333988793,1722666724725,-11630.47,0.00017534,2]
[333988794,1722666724736,-507.91275228,0.00017534,2]
[333988795,1722666724746,-842.12,0.00017534,2]
[333988796,1722666724757,-7815.4,0.00017534,2]
[333988797,1722666724767,-1992.28,0.00017534,2]
[333988798,1722666724777,-500.0,0.00017534,2]
[333988799,1722666724787,-500.0,0.00017534,2]
[333988800,1722666724797,-872.75,0.00017534,2]
[333988801,1722666724807,-1230.65,0.00017534,2]
[333988802,1722666724817,-1652.65,0.00017534,2]
[333988803,1722666724827,-505.47259232,0.00017534,2]
[333988804,1722666724837,-500.0,0.00017534,2]
[333988805,1722666724847,-1417.26,0.00017534,2]
[333988806,1722666724857,-500.0,0.00017534,2]
[333988807,1722666724866,-24317.71,0.00017534,2]
[333988808,1722666724876,-500.0,0.00017534,2]
[333988809,1722666724887,-500.0,0.00017534,2]
[333988810,1722666724897,-373.5854872,0.00017534,2]
[333988811,1722666724907,-8359.0,0.00017534,2]
[333988812,1722666724917,-1381.62,0.00017534,2]
[333988813,1722666724927,-2959.52,0.00017534,2]
[333988814,1722666724937,-500.0,0.00017534,2]
[333988815,1722666724947,-500.0,0.00017534,2]
[333988816,1722666724959,-1125.68,0.00017534,2]
[333988817,1722666724970,-2625.72,0.00017534,2]
[333988818,1722666724980,-500.0,0.00017534,2]
[333988819,1722666724990,-541.08,0.00017534,2]
[333988820,1722666725001,-506.17129588,0.00017534,2]
[333988821,1722666725012,-1606.59,0.00017534,2]
[333988822,1722666725022,-4129.44,0.00017534,2]
[333988823,1722666725033,-500.0,0.00017534,2]
[333988824,1722666725043,-765.03,0.00017534,2]
[333988825,1722666725054,-502.95278558,0.00017534,2]
[333988826,1722666725064,-500.0,0.00017534,2]
[333988827,1722666725075,-1071.89,0.00017534,2]
[333988828,1722666725086,-509.39859718,0.00017534,2]
[333988829,1722666725097,-8009.82,0.00017534,2]
[333988830,1722666725107,-500.0,0.00017534,2]
[333988831,1722666725117,-500.0,0.00017534,2]
[333988832,1722666725127,-4309.68,0.00017534,2]
[333988833,1722666725138,-677.22,0.00017534,2]
[333988834,1722666725149,-155.285,0.00017534,2]
[333988835,1722666725159,-500.0,0.00017534,2]
[333988836,1722666725169,-500.0,0.00017534,2]
[333988837,1722666725180,-500.0,0.00017534,2]
[333988838,1722666725191,-3498.32,0.00017534,2]
[333988839,1722666725201,-1008.21,0.00017534,2]
[333988840,1722666725216,-500.0,0.00017534,2]
[333988841,1722666725227,-155.285,0.00017534,2]
[333988842,1722666725237,-2091.29,0.00017534,2]
[333988843,1722666725247,-678.45,0.00017534,2]
[333988844,1722666725257,-500.0,0.00017534,2]
[333988845,1722666725267,-500.0,0.00017534,2]
[333988846,1722666725277,-3261.4,0.00017534,2]
[333988847,1722666725288,-500.0,0.00017534,2]
[333988848,1722666725299,-2329.21,0.00017534,2]
[333988849,1722666725310,-1982.62,0.00017534,2]
[333988850,1722666725320,-2884.474118,0.00017534,2]
[333988851,1722666725332,-6585.94,0.00017534,2]
[333988852,1722666725343,-532.0,0.00017534,2]
[333988853,1722666725353,-2347.25,0.00017534,2]
[333988854,1722666725364,-2884.474122,0.00017534,2]
[333988855,1722666725374,-3237.49,0.00017534,2]
[333988856,1722666725385,-595.79,0.00017534,2]
[333988857,1722666725396,-1438.93,0.00017534,2]
[333988858,1722666725406,-500.0,0.00017534,2]
[333988859,1722666725417,-1558.03,0.00017534,2]
[333988860,1722666725427,-12013.62,0.00017534,2]
[333988861,1722666725438,-3194.48,0.00017534,2]
[333988862,1722666725450,-2240.39,0.00017534,2]
[333988863,1722666725465,-1275.84,0.00017534,2]
[333988864,1722666725475,-1245.88,0.00017534,2]
[333988865,1722666725486,-869.05,0.00017534,2]
[333988866,1722666725496,-500.0,0.00017534,2]
[333988867,1722666725507,-500.0,0.00017534,2]
[333988868,1722666725518,-3558.7,0.00017534,2]
[333988869,1722666725528,-512.841994,0.00017534,2]
[333988870,1722666725539,-1516.63,0.00017534,2]
[333988871,1722666725549,-2444.23,0.00017534,2]
[333988872,1722666725560,-4848.71,0.00017534,2]
[333988873,1722666725571,-2528.58,0.00017534,2]
[333988874,1722666725581,-7111.63,0.00017534,2]
[333988875,1722666725591,-1234.51,0.00017534,2]
[333988876,1722666725601,-500.0,0.00017534,2]
[333988877,1722666725611,-1577.42,0.00017534,2]
[333988878,1722666725622,-3976.74,0.00017534,2]
[333988879,1722666725632,-914.84,0.00017534,2]
[333988880,1722666725643,-1179.29,0.00017534,2]
[333988881,1722666725656,-636.98756901,0.00017534,2]
[333988882,1722666725667,-2341.98,0.00017534,2]
[333988883,1722666725678,-522.63,0.00017534,2]
[333988884,1722666725688,-2827.3,0.00017534,2]
[333988885,1722666725699,-1379.48,0.00017534,2]
[333988886,1722666725712,-13569.7,0.00017534,2]
[333988887,1722666725723,-1254.92,0.00017534,2]
[333988888,1722666725734,-989.03,0.00017534,2]
[333988889,1722666725744,-867.22,0.00017534,2]
[333988890,1722666725755,-1520.15,0.00017534,2]
[333988891,1722666725765,-500.0,0.00017534,2]
[333988892,1722666725775,-4544.83,0.00017534,2]
[333988893,1722666725785,-1100.73,0.00017534,2]
[333988894,1722666725795,-797.96,0.00017534,2]
[333988895,1722666725806,-500.0,0.00017534,2]
[333988896,1722666725816,-799.61,0.00017534,2]
[333988897,1722666725826,-500.0,0.00017534,2]
[333988898,1722666725837,-5638.64,0.00017534,2]
[333988899,1722666725847,-1242.0,0.00017534,2]
[333988900,1722666725858,-500.0,0.00017534,2]
[333988901,1722666725869,-500.0,0.00017534,2]
[333988902,1722666725879,-500.0,0.00017534,2]
[333988903,1722666725889,-941.33,0.00017534,2]
[333988904,1722666725900,-1488.46,0.00017534,2]
[333988905,1722666725910,-560.97,0.00017534,2]
[333988906,1722666725920,-500.0,0.00017534,2]
[333988907,1722666725930,-920.3,0.00017534,2]
[333988908,1722666725940,-500.0,0.00017534,2]
[333988909,1722666725951,-151.0,0.00017534,2]
[333988910,1722666725963,-3017.99,0.00017534,2]
[333988911,1722666725973,-500.0,0.00017534,2]
[333988912,1722666725983,-1976.61,0.00017534,2]
[333988913,1722666725994,-980.35,0.00017534,2]
[333988914,1722666726004,-484.11867356,0.00017534,2]
[333988915,1722666726014,-2347.93,0.00017534,2]
[333988916,1722666726025,-500.0,0.00017534,2]
[333988917,1722666726035,-3028.02,0.00017534,2]
[333988918,1722666726045,-500.0,0.00017534,2]
[333988919,1722666726057,-1182.86,0.00017534,2]
[333988920,1722666726067,-1315.97,0.00017534,2]
[333988921,1722666726077,-663.52,0.00017534,2]
[333988922,1722666726088,-1429.57,0.00017534,2]
[333988923,1722666726098,-500.0,0.00017534,2]
[333988924,1722666726108,-1009.6,0.00017534,2]
[333988925,1722666726118,-535.59,0.00017534,2]
[333988926,1722666726128,-2404.697468,0.00017534,2]
[333988927,1722666726138,-1659.64,0.00017534,2]
[333988928,1722666726148,-2820.52,0.00017534,2]
[333988929,1722666726158,-2112.36,0.00017534,2]
[333988930,1722666726169,-4031.55,0.00017534,2]
[333988931,1722666726179,-2096.17,0.00017534,2]
[333988932,1722666726189,-1049.02,0.00017534,2]
[333988933,1722666726199,-2404.697476,0.00017534,2]
[333988934,1722666726211,-500.0,0.00017534,2]
[333988935,1722666726222,-10150.27,0.00017534,2]
[333988936,1722666726232,-500.0,0.00017534,2]
[333988937,1722666726242,-1206.49,0.00017534,2]
[333988938,1722666726252,-1122.59,0.00017534,2]
[333988939,1722666726262,-576.06,0.00017534,2]
[333988940,1722666726570,-1726.0,0.00017534,2]
[333988941,1722666726588,-793.05,0.00017534,2]
[333988942,1722666726599,-3672.81,0.00017534,2]
[333988943,1722666726609,-3286.16,0.00017534,2]
[333988944,1722666726619,-1612.0,0.00017534,2]
[333988945,1722666726629,-3453.65,0.00017534,2]
[333988946,1722666726640,-500.0,0.00017534,2]
[333988947,1722666726652,-15160.97,0.00017534,2]
[333988948,1722666726662,-500.0,0.00017534,2]
[333988949,1722666726672,-1516.13,0.00017534,2]
[333988950,1722666726683,-1177.76,0.00017534,2]
[333988951,1722666726694,-228.042973,0.00017534,2]
[333988952,1722666726706,-1029.84,0.00017534,2]
[333988953,1722666726717,-500.0,0.00017534,2]
[333988954,1722666726729,-681.33,0.00017534,2]
[333988955,1722666726739,-7716.14,0.00017534,2]
[333988956,1722666726750,-500.0,0.00017534,2]
[333988957,1722666726760,-2110.03,0.00017534,2]
[333988958,1722666726770,-1577.4,0.00017534,2]
[333988959,1722666726780,-228.042973,0.00017534,2]
[333988960,1722666726791,-5511.15,0.00017534,2]
[333988961,1722666726802,-625.81201332,0.00017534,2]
[333988962,1722666726812,-500.0,0.00017534,2]
[333988963,1722666726823,-1050.57,0.00017534,2]
[333988964,1722666726834,-797.55,0.00017534,2]
[333988965,1722666726844,-2534.68,0.00017534,2]
[333988966,1722666726854,-500.0,0.00017534,2]
[333988967,1722666726864,-2306.35,0.00017534,2]
[333988968,1722666726874,-3191.49,0.00017534,2]
[333988969,1722666726885,-681.76,0.00017534,2]
[333988970,1722666726896,-500.0,0.00017534,2]
[333988971,1722666726906,-517.29,0.00017534,2]
[333988972,1722666726917,-2590.66,0.00017534,2]
[333988973,1722666726929,-500.0,0.00017534,2]
[333988974,1722666726939,-2269.33,0.00017534,2]
[333988975,1722666726949,-500.0,0.00017534,2]
[333988976,1722666726961,-571.15,0.00017534,2]
[333988977,1722666726971,-4486.63,0.00017534,2]
[333988978,1722666726981,-1395.7,0.00017534,2]
[333988979,1722666726991,-500.0,0.00017534,2]
[333988980,1722666727003,-927.9,0.00017534,2]
[333988981,1722666727013,-2172.92,0.00017534,2]
[333988982,1722666727023,-642.08,0.00017534,2]
[333988983,1722666727033,-500.0,0.00017534,2]
[333988984,1722666727043,-1875.47,0.00017534,2]
[333988985,1722666727053,-500.0,0.00017534,2]
[333988986,1722666727062,-421.8464148,0.00017534,2]
[333988987,1722666727073,-551.94,0.00017534,2]
[333988988,1722666727083,-1703.59,0.00017534,2]
[333988989,1722666727094,-1746.66,0.00017534,2]
[333988990,1722666727105,-500.0,0.00017534,2]
[333988991,1722666727115,-784.82,0.00017534,2]
[333988992,1722666727126,-591.2,0.00017534,2]
[333988993,1722666727136,-849.08,0.00017534,2]
[333988994,1722666727147,-3768.21,0.00017534,2]
[333988995,1722666727157,-500.0,0.00017534,2]
[333988996,1722666727168,-500.0,0.00017534,2]
[333988997,1722666727178,-876.21,0.00017534,2]
[333988998,1722666727188,-400.0,0.00017534,2]
[333988999,1722666727199,-500.0,0.00017534,2]
[333989000,1722666727211,-1805.68,0.00017534,2]
[333989001,1722666727222,-3769.02,0.00017534,2]
[333989002,1722666727232,-2265.81,0.00017534,2]
[333989003,1722666727242,-500.0,0.00017534,2]
[333989004,1722666727252,-500.0,0.00017534,2]
[333989005,1722666727262,-824.9,0.00017534,2]
[333989006,1722666727272,-1540.49,0.00017534,2]
[333989007,1722666727282,-614.94,0.00017534,2]
[333989008,1722666727293,-3464.14,0.00017534,2]
[333989009,1722666727303,-3761.09,0.00017534,2]
[333989010,1722666727314,-5639.15,0.00017534,2]
[333989011,1722666727324,-2239.27,0.00017534,2]
[333989012,1722666727335,-500.0,0.00017534,2]
[333989013,1722666727347,-617.86,0.00017534,2]
[333989014,1722666727357,-650.38,0.00017534,2]
[333989015,1722666727368,-991.2,0.00017534,2]
[333989016,1722666727378,-3794.93,0.00017534,2]
[333989017,1722666727389,-500.0,0.00017534,2]
[333989018,1722666727399,-6154.67,0.00017534,2]
[333989019,1722666727409,-610.3,0.00017534,2]
[333989020,1722666727420,-1846.35,0.00017534,2]
[333989021,1722666727430,-2062.14,0.00017534,2]
[333989022,1722666727441,-7006.55,0.00017534,2]
[333989023,1722666727453,-500.0,0.00017534,2]
[333989024,1722666727466,-654.74,0.00017534,2]
[333989025,1722666727482,-500.0,0.00017534,2]
[333989026,1722666727492,-2260.06,0.00017534,2]
[333989027,1722666727503,-1671.01,0.00017534,2]
[333989028,1722666727513,-810.7,0.00017534,2]
[333989029,1722666727523,-2426.51,0.00017534,2]
[333989030,1722666727533,-500.0,0.00017534,2]
[333989031,1722666727542,-9425.49,0.00017534,2]
[333989032,1722666727553,-500.0,0.00017534,2]
[333989033,1722666727563,-1017.09,0.00017534,2]
[333989034,1722666727573,-706.97,0.00017534,2]
[333989035,1722666727583,-9197.15,0.00017534,2]
[333989036,1722666727593,-1431.9,0.00017534,2]
[333989037,1722666727603,-18960.81,0.00017534,2]
[333989038,1722666727613,-500.0,0.00017534,2]
[333989039,1722666727623,-500.0,0.00017534,2]
[333989040,1722666727633,-525.13963486,0.00017534,2]
[333989041,1722666727646,-803.92,0.00017534,2]
[333989042,1722666727658,-2204.57,0.00017534,2]
[333989043,1722666727668,-666.06,0.00017534,2]
[333989044,1722666727678,-500.0,0.00017534,2]
[333989045,1722666727688,-684.75,0.00017534,2]
[333989046,1722666727699,-1958.7,0.00017534,2]
[333989047,1722666727709,-2126.17,0.00017534,2]
[333989048,1722666727719,-2113.7,0.00017534,2]
[333989049,1722666727730,-500.0,0.00017534,2]
[333989050,1722666727740,-876.59,0.00017534,2]
[333989051,1722666727749,-580.14,0.00017534,2]
[333989052,1722666727760,-3958.71,0.00017534,2]
[333989053,1722666727770,-1366.09,0.00017534,2]
[333989054,1722666727780,-500.0,0.00017534,2]
[333989055,1722666727791,-1636.82,0.00017534,2]
[333989056,1722666727801,-3068.73,0.00017534,2]
[333989057,1722666727811,-196.7376405,0.00017534,2]
[333989058,1722666727821,-1915.63,0.00017534,2]
[333989059,1722666727832,-2609.6,0.00017534,2]
[333989060,1722666727842,-500.0,0.00017534,2]
[333989061,1722666727853,-1156.97,0.00017534,2]
[333989062,1722666727863,-1837.83,0.00017534,2]
[333989063,1722666727872,-500.0,0.00017534,2]
[333989064,1722666727882,-735.07,0.00017534,2]
[333989065,1722666727892,-583.63,0.00017534,2]
[333989066,1722666727902,-664.37,0.00017534,2]
[333989067,1722666727912,-2322.65,0.00017534,2]
[333989068,1722666727922,-651.05,0.00017534,2]
[333989069,1722666727933,-500.0,0.00017534,2]
[333989070,1722666727943,-1304.49,0.00017534,2]
[333989071,1722666727953,-519.82571526,0.00017534,2]
[333989072,1722666727965,-500.0,0.00017534,2]
[333989073,1722666727976,-1780.87,0.00017534,2]
[333989074,1722666727986,-3594.13,0.00017534,2]
[333989075,1722666727996,-1004.22,0.00017534,2]
[333989076,1722666728007,-500.0,0.00017534,2]
[333989077,1722666728018,-2603.67,0.00017534,2]
[333989078,1722666728028,-685.3,0.00017534,2]
[333989079,1722666728039,-1360.09,0.00017534,2]
[333989080,1722666728048,-183.189171,0.00017544,2]
[333989081,1722666728058,-245.11283,0.00017544,2]
[333989082,1722666728068,-323.811851,0.00017544,2]
[333989083,1722666728079,-354.400775,0.00017544,2]
[333989084,1722666728088,-3715.052926,0.00017544,2]
[333989085,1722666728098,-14547.490637,0.00017544,2]
[333989086,1722666728107,-17206.65622,0.00017544,2]
[333989087,1722666728117,-207.752414,0.00017544,2]
[333989088,1722666728126,-840.837562,0.00017544,2]
[333989089,1722666728136,-651.656202,0.00017544,2]
[333989090,1722666728146,-1457.984716,0.00017544,2]
[333989091,1722666728156,-1393.789355,0.00017544,2]
[333989092,1722666728165,-2343.964015,0.00017544,2]
[333989093,1722666728175,-731.610229,0.00017544,2]
[333989094,1722666728184,-706.352109,0.00017544,2]
[333989095,1722666728194,-168.224889,0.00017544,2]
[333989096,1722666728204,-766.2961,0.00017544,2]
[333989097,1722666728215,-739.788836,0.00017544,2]
[333989098,1722666728225,-204.243847,0.00017544,2]
[333989099,1722666728235,-345.044234,0.00017544,2]
[333989100,1722666728245,-151.0,0.00017544,2]
[333989101,1722666728255,-151.0,0.00017544,2]
[333989102,1722666728265,-788.504572,0.00017544,2]
[333989103,1722666728275,-788.504572,0.00017544,2]
[333989104,1722666728285,-151.0,0.00017544,2]
[333989105,1722666728295,-466.122221,0.00017544,2]
[333989106,1722666728305,-466.122228,0.00017544,2]
[333989107,1722666728316,-800.028529,0.00017544,2]
[333989108,1722666728326,-800.028531,0.00017544,2]
[333989109,1722666728335,-525.679238,0.00017544,2]
[333989110,1722666728345,-525.679235,0.00017544,2]
[333989111,1722666728355,-2054.066293,0.00017544,2]
[333989112,1722666728365,-284.742637,0.00017549,2]
[333989113,1722666728374,-182.115766,0.00017549,2]
[333989114,1722666728384,-392.691139,0.00017549,2]
[333989115,1722666728394,-467.643079,0.00017549,2]
[333989116,1722666728403,-201.737184,0.00017549,2]
[333989117,1722666728413,-9814.464715,0.00017549,2]
[333989118,1722666728423,-29587.127974,0.00017549,2]
[333989119,1722666728433,-676.529965,0.00017549,2]
[333989120,1722666728442,-163.983569,0.00017549,2]
[333989121,1722666728453,-181.117561,0.00017549,2]
[333989122,1722666728465,-532.656803,0.00017549,2]
[333989123,1722666728474,-220.238779,0.00017549,2]
[333989124,1722666728484,-502.456116,0.00017549,2]
[333989125,1722666728494,-456.528838,0.00017549,2]
[333989126,1722666728503,-160.707455,0.00017549,2]
[333989127,1722666728513,-441.256191,0.00017549,2]
[333989128,1722666728522,-5619.454371,0.00017549,2]
[333989129,1722666728532,-173.872857,0.00017549,2]
[333989130,1722666728542,-475.552508,0.00017549,2]
[333989131,1722666728552,-272.306319,0.00017549,2]
[333989132,1722666728562,-8127.573152,0.00017549,2]
[333989133,1722666728572,-2855.804423,0.00017549,2]
[333989134,1722666728582,-11048.99179,0.00017549,2]
[333989135,1722666728592,-6058.97,0.00017556,6]
[333989136,1722666728602,-8045.9,0.00017556,6]
[333989137,1722666728612,-5230.68551544,0.000176,2]
[333989138,1722666728622,-568.202,0.00017635,2]
[333989139,1722666728631,-654.01477337,0.00017636,2]
[333989140,1722666728642,-650.50018776,0.00017636,2]
[333989141,1722666728655,-214.0,0.0001767,2]
[333989142,1722666728664,-35903.93,0.000177,6]
[333989143,1722666728674,-8909.19,0.000177,6]
[333989144,1722666728684,-203.0,0.0001773,2]
[333989145,1722666728694,-200.0,0.0001773,2]
[333989146,1722666728703,-200.0,0.0001773,2]
[333989147,1722666728715,-215.0,0.0001773,2]
[333989148,1722666728726,-201.0,0.0001773,2]
[333989149,1722666728736,-201.0,0.0001773,2]
[333989150,1722666728746,-1073.73542888,0.00017739,2]
[333989151,1722666728756,-206.43435109,0.00017739,2]
[333989152,1722666728766,-1073.73542888,0.00017739,2]
[333989153,1722666728776,-625.60708306,0.00017739,2]
[333989154,1722666728787,-298.88352744,0.00017739,2]
[333989155,1722666728797,-612.07566368,0.00017739,2]
[333989156,1722666728807,-155.05716996,0.00017739,2]
[333989157,1722666728817,-245.11283,0.00017758,2]
[333989158,1722666728826,-323.811851,0.00017758,2]
[333989159,1722666728836,-354.400775,0.00017758,2]
[333989160,1722666728846,-3715.052926,0.00017758,2]
[333989161,1722666728855,-14547.490637,0.00017758,2]
[333989162,1722666728865,-17206.65622,0.00017758,2]
[333989163,1722666728875,-207.752414,0.00017758,2]
[333989164,1722666728884,-840.837562,0.00017758,2]
[333989165,1722666728895,-651.656202,0.00017758,2]
[333989166,1722666728904,-1457.984716,0.00017758,2]
[333989167,1722666728914,-1393.789355,0.00017758,2]
[333989168,1722666728924,-2343.964015,0.00017758,2]
[333989169,1722666728934,-731.610229,0.00017758,2]
[333989170,1722666728943,-706.352109,0.00017758,2]
[333989171,1722666728953,-168.224889,0.00017758,2]
[333989172,1722666728964,-766.2961,0.00017758,2]
[333989173,1722666728974,-739.788836,0.00017758,2]
[333989174,1722666728983,-204.243847,0.00017758,2]
[333989175,1722666728993,-345.044234,0.00017758,2]
[333989176,1722666729003,-284.742637,0.00017769,2]
[333989177,1722666729012,-467.643079,0.00017769,2]
[333989178,1722666729119,-392.691139,0.00017769,2]
[333989179,1722666729129,-201.737184,0.00017769,2]
[333989180,1722666729139,-9814.464715,0.00017769,2]
[333989181,1722666729148,-29587.127974,0.00017769,2]
[333989182,1722666729157,-676.529965,0.00017769,2]
[333989183,1722666729167,-532.656803,0.00017769,2]
[333989184,1722666729176,-220.238779,0.00017769,2]
[333989185,1722666729185,-502.456116,0.00017769,2]
[333989186,1722666729195,-456.528838,0.00017769,2]
[333989187,1722666729204,-441.256191,0.00017769,2]
[333989188,1722666729215,-5619.454371,0.00017769,2]
[333989189,1722666729224,-475.552508,0.00017769,2]
[333989190,1722666729234,-272.306319,0.00017769,2]
[333989191,1722666729244,-8127.573152,0.00017769,2]
[333989192,1722666729254,-2855.804423,0.00017769,2]
[333989193,1722666729263,-11048.99179,0.00017769,2]
[333989194,1722666729273,-150.5,0.0001778,120]
[333989195,1722666729282,-150.5,0.0001778,30]
[333989196,1722666729291,-1339.0,0.0001778,120]
[333989197,1722666729301,-224.41283966,0.00017782,2]
[333989198,1722666729311,-502.28760871,0.00017782,2]
[333989199,1722666729320,-520.57955112,0.00017782,2]
[333989200,1722666729330,-155.17465381,0.00017782,2]
[333989201,1722666729339,-166.63648292,0.00017782,2]
[333989202,1722666729350,-164.55272693,0.00017782,2]
[333989203,1722666729359,-347.95327197,0.00017782,2]
[333989204,1722666729368,-252.97990276,0.00017782,2]
[333989205,1722666729378,-155.0,0.00017782,2]
[333989206,1722666729388,-485.63539789,0.00017782,2]
[333989207,1722666729397,-608.75210077,0.00017782,2]
[333989208,1722666729407,-155.29730871,0.00017782,2]
[333989209,1722666729416,-267.11204657,0.00017782,2]
[333989210,1722666729426,-157.18380237,0.00017782,2]
[333989211,1722666729436,-164.23718751,0.00017782,2]
[333989212,1722666729446,-150.5,0.0001779,120]
[333989213,1722666729455,-158.27,0.0001779,120]
[333989214,1722666729465,-150.5,0.0001779,30]
[333989215,1722666729474,-1339.0,0.0001779,120]
[333989216,1722666729484,-1339.0,0.0001779,120]
[333989217,1722666729493,-1344.74,0.0001779,120]
[333989218,1722666729502,-219.08205565,0.00017799,2]
[333989219,1722666729511,-200.65918994,0.00017799,2]
[333989220,1722666729521,-159.25452191,0.00017799,2]
[333989221,1722666729531,-159.74810686,0.00017799,2]
[333989222,1722666729540,-155.06861892,0.00017799,2]
[333989223,1722666729549,-155.55071732,0.00017799,2]
[333989224,1722666729562,-628.09541039,0.00017799,2]
[333989225,1722666729571,-209.71353418,0.00017799,2]
[333989226,1722666729580,-155.45790944,0.00017799,2]
[333989227,1722666729590,-155.26879691,0.00017799,2]
[333989228,1722666729599,-155.0,0.00017799,2]
[333989229,1722666729608,-155.07509742,0.00017799,2]
[333989230,1722666729617,-303.46391166,0.00017799,2]
[333989231,1722666729627,-202.58401678,0.00017799,2]
[333989232,1722666729636,-160.35454892,0.00017799,2]
[333989233,1722666729646,-246.88999882,0.00017799,2]
[333989234,1722666729659,-160.33073646,0.00017799,2]
[333989235,1722666729669,-241.3440011,0.00017799,2]
[333989236,1722666729678,-160.1811969,0.00017799,2]
[333989237,1722666729687,-155.04769308,0.00017799,2]
[333989238,1722666729697,-174.12025365,0.00017799,2]
[333989239,1722666729706,-162.73964271,0.00017799,2]
[333989240,1722666729717,-156.68132248,0.00017799,2]
[333989241,1722666729727,-173.58243748,0.00017799,2]
[333989242,1722666729736,-155.12171257,0.00017799,2]
[333989243,1722666729746,-240.96512908,0.00017799,2]
[333989244,1722666729755,-160.32425827,0.00017799,2]